bitfinex/quotes_ETHUSD_20250925
["timestamp","ask_amount","ask_price","bid_price","bid_amount"]
[1758841981950,0.792,3903.2,3903.1,0.02]
[1758841982282,0.792,3903.2,3902.2,0.4517]
[1758841982283,6.35440926,3902.6,3902.2,0.4517]
[1758841982622,0.792,3902.4,3902.2,0.4517]
[1758841982877,2.27213173,3902.3,3902.2,0.4517]
[1758841983183,0.792,3902.3,3901.9,0.4517]
[1758841983349,0.792,3902.3,3902.1,0.4717]
[1758841983679,0.792,3902.3,3902.1,0.02]
[1758841983680,2.0967994,3902.2,3902.1,0.02]
[1758841983843,4.65945636,3902.2,3902.1,0.02]
[1758841984042,7.65945636,3902.2,3902.1,0.02]
[1758841984250,11.22247386,3902.2,3902.1,0.02]
[1758841985643,11.22247386,3902.2,3901.1,0.02]
[1758841985644,2.56331385,3901.2,3901.1,0.02]
[1758841985846,7.2515522,3901.2,3901.1,0.02]
[1758841986058,8.30411873,3901.2,3901.1,0.02]
[1758841986387,10.50555273,3901.2,3901.1,0.02]
[1758841987189,3.35597107,3900.2,3900.1,0.02]
[1758841987357,6.35597107,3900.2,3900.1,0.02]
[1758841987553,11.01737107,3900.2,3900.1,0.02]
[1758841988376,11.98540007,3900.2,3900.1,0.02]
[1758841988546,12.43130007,3900.2,3900.1,0.02]
[1758841990082,8.05700613,3900.2,3900.1,0.02]
[1758841990285,4.29960606,3900.2,3900.1,0.4528]
[1758841990784,4.29960606,3900.2,3900.1,0.02]
[1758841992282,7.63470705,3900.2,3900.1,0.02]
[1758841992453,12.06970705,3900.2,3900.1,0.02]
[1758841992653,13.54586332,3900.2,3900.1,0.02]
[1758841992849,13.77126332,3900.2,3900.1,0.02]
[1758841993054,13.54586332,3900.2,3900.1,0.02]
[1758841993983,10.98189225,3900.2,3900.1,0.02]
[1758841994190,12.06970705,3900.2,3900.1,0.02]
[1758841996591,12.06970705,3900.2,3900.1,0.022]
[1758841996957,5.07073598,3900.2,3900.1,0.4548]
[1758841997193,9.49773598,3900.2,3900.1,0.6962]
[1758841997391,12.06170705,3900.2,3900.1,0.4548]
[1758841997795,12.06170705,3900.2,3900.1,0.022]
[1758842001990,9.49773598,3900.2,3900.1,0.022]
[1758842002194,12.06170705,3900.2,3900.1,0.022]
[1758842002966,12.30080705,3900.2,3900.1,0.022]
[1758842003359,12.06170705,3900.2,3900.1,0.022]
[1758842003565,5.07073598,3900.2,3900.1,0.022]
[1758842003765,12.05370705,3900.2,3900.1,0.022]
[1758842005068,12.29280705,3900.2,3900.1,0.022]
[1758842005282,14.24367202,3900.2,3900.1,0.022]
[1758842005712,13.77847202,3900.2,3900.1,0.022]
[1758842005880,13.53937202,3900.2,3900.1,0.022]
[1758842006285,9.48673598,3900.2,3900.1,0.456]
[1758842006604,9.48673598,3900.2,3900.1,0.6949]
[1758842007597,1.530134,3901.2,3900.1,0.6949]
[1758842007805,0.6949,3900.9,3900.2,0.6729]
[1758842008124,3.792,3900.8,3900.6,0.128]
[1758842008486,3.0,3900.8,3900.6,0.8009]
[1758842008820,0.792,3900.7,3900.6,0.8009]
[1758842009503,1.30970825,3900.7,3900.6,0.8009]
[1758842009701,1.30970825,3900.7,3900.6,0.562]
[1758842010018,3.792,3900.2,3900.1,0.15]
[1758842010316,6.59507107,3900.2,3900.1,0.022]
[1758842010681,7.06027107,3900.2,3900.1,0.022]
[1758842010880,8.46398219,3900.2,3900.1,0.022]
[1758842012096,9.30184808,3900.2,3900.1,0.022]
[1758842012418,6.35623406,3899.8,3899.7,0.002]
[1758842012626,6.35623406,3899.8,3899.3,0.002]
[1758842012627,2.5644971,3899.4,3899.3,0.002]
[1758842012792,12.9044971,3899.4,3899.3,0.002]
[1758842012992,16.05740729,3899.4,3899.3,0.002]
[1758842013408,16.05740729,3899.4,3899.1,0.02]
[1758842013409,3.35662864,3899.2,3899.1,0.02]
[1758842013596,13.35413107,3899.2,3899.1,0.02]
[1758842013921,14.05843107,3899.2,3899.1,0.02]
[1758842014215,16.362135,3899.2,3899.1,0.02]
[1758842014988,3.35676019,3899.0,3898.9,0.002]
[1758842015318,11.21726262,3899.0,3898.9,0.002]
[1758842015817,11.92156262,3899.0,3898.9,0.002]
[1758842017202,7.50856262,3899.0,3898.9,0.002]
[1758842017403,15.29325214,3899.0,3898.9,0.002]
[1758842017724,8.74625214,3899.0,3898.9,0.002]
[1758842017929,7.88856263,3899.0,3898.9,0.002]
[1758842018148,11.76587677,3899.0,3898.9,0.002]
[1758842018298,13.97387677,3899.0,3898.9,0.002]
[1758842018500,15.00497677,3899.0,3898.9,0.002]
[1758842022423,15.4524792,3899.0,3898.9,0.002]
[1758842022624,15.9176792,3899.0,3898.9,0.002]
[1758842023605,15.4524792,3899.0,3898.9,0.002]
[1758842024636,15.9176792,3899.0,3898.9,0.002]
[1758842024933,9.3696792,3899.0,3898.9,0.002]
[1758842025231,6.1627051,3899.0,3898.9,0.002]
[1758842025424,13.02959218,3899.0,3898.9,0.002]
[1758842025628,13.82159218,3899.0,3898.9,0.002]
[1758842026114,13.41931414,3899.0,3898.9,0.002]
[1758842026315,13.65841414,3899.0,3898.9,0.002]
[1758842026526,15.13289383,3899.0,3898.9,0.002]
[1758842027236,10.72789383,3899.0,3898.9,0.002]
[1758842027436,2.56433523,3899.7,3898.9,0.002]
[1758842027437,2.137,3899.7,3898.9,0.6749]
[1758842027655,4.406,3899.6,3899.0,0.6729]
[1758842027835,2.56452047,3899.4,3899.1,0.6729]
[1758842028036,3.0,3899.2,3899.1,0.2252]
[1758842028416,3.792,3899.2,3899.1,0.2252]
[1758842028713,3.792,3899.2,3899.1,0.6926]
[1758842029141,6.35662864,3899.2,3899.1,0.6926]
[1758842029457,3.0,3899.0,3898.9,0.002]
[1758842029749,7.404,3899.0,3898.9,0.4694]
[1758842029953,7.404,3899.0,3898.9,0.6946]
[1758842031528,0.792,3899.2,3898.9,0.6946]
[1758842031728,8.193,3899.1,3899.0,0.6926]
[1758842031912,3.792,3899.1,3899.0,0.6926]
[1758842032113,3.792,3899.1,3899.0,0.8226]
[1758842034046,0.792,3899.1,3899.0,0.8226]
[1758842034252,0.001,3899.5,3899.0,0.8226]
[1758842034541,0.793,3899.5,3899.1,0.71824694]
[1758842034741,0.793,3899.5,3899.4,0.128]
[1758842034949,0.793,3899.5,3899.4,0.8206]
[1758842038146,0.001,3899.5,3899.4,0.8206]
[1758842038722,0.001,3899.5,3899.4,0.6926]
[1758842039015,0.001,3899.5,3899.4,0.97556]
[1758842040263,0.793,3899.5,3899.0,0.6946]
[1758842040433,0.793,3899.5,3899.0,0.4694]
[1758842040434,1.0368,3899.5,3899.0,0.4694]
[1758842040636,0.001,3899.5,3899.0,0.002]
[1758842040943,0.001,3899.5,3899.1,0.71824694]
[1758842041263,0.001,3899.5,3899.0,0.002]
[1758842041264,0.001,3899.5,3899.2,0.6926]
[1758842041562,0.001,3899.5,3899.3,2.8296]
[1758842041772,0.001,3899.5,3899.4,0.97556]
[1758842042126,0.001,3899.5,3899.4,1.00120497]
[1758842042523,0.001,3899.5,3899.4,0.97556]
[1758842043101,0.001,3899.5,3899.4,14.19156]
[1758842043265,0.001,3899.5,3899.4,0.97556]
[1758842043467,0.001,3899.5,3899.4,0.6926]
[1758842043673,0.001,3899.5,3899.4,7.2296]
[1758842043871,0.001,3899.5,3899.4,0.6926]
[1758842044081,0.001,3899.5,3899.4,7.2296]
[1758842047871,0.001,3899.5,3899.4,7.2256]
[1758842048204,0.001,3899.5,3899.4,8.61596]
[1758842048703,0.001,3899.5,3899.4,8.74396]
[1758842048918,0.001,3899.5,3899.4,1.98576]
[1758842049074,0.001,3899.5,3899.4,0.5954]
[1758842049276,0.001,3899.5,3899.4,6.0935]
[1758842049710,0.001,3899.5,3899.4,0.128]
[1758842050011,0.001,3899.5,3899.4,4.524]
[1758842050976,0.24782092,3899.9,3899.4,4.396]
[1758842051177,0.455,3900.1,3899.8,0.128]
[1758842052124,0.001,3899.5,3899.1,4.395]
[1758842052979,0.2499,3899.4,3899.1,4.395]
[1758842053210,0.001,3899.5,3899.2,0.02564628]
[1758842053410,0.001,3899.5,3899.2,0.69984628]
[1758842053581,0.001,3899.5,3899.3,0.50968463]
[1758842053784,0.001,3899.5,3899.4,0.02564497]
[1758842054080,0.001,3899.5,3899.4,0.47274497]
[1758842057110,0.001,3899.5,3899.4,0.02564497]
[1758842057281,0.001,3899.5,3899.4,0.69984497]
[1758842057486,0.001,3899.5,3899.4,1.26029793]
[1758842060022,0.001,3899.5,3899.4,5.62165296]
[1758842060215,0.001,3899.5,3899.4,7.75865296]
[1758842062037,0.001,3899.5,3899.4,7.88665296]
[1758842066217,0.001,3899.5,3899.4,1.36265296]
[1758842066545,0.001,3899.5,3899.4,0.8022]
[1758842066843,0.001,3899.5,3899.4,6.645]
[1758842069652,0.001,3899.5,3899.4,4.509]
[1758842069854,0.001,3899.5,3899.4,6.645]
[1758842071673,0.001,3899.5,3899.4,6.647]
[1758842072462,0.001,3899.5,3899.4,7.35583]
[1758842072881,0.001,3899.5,3899.4,0.13]
[1758842073039,0.7051,3899.5,3899.4,0.606]
[1758842075160,0.7051,3899.5,3899.4,4.511]
[1758842075740,0.7051,3899.5,3899.4,0.13]
[1758842076164,1.20667518,3899.5,3899.4,0.13]
[1758842076359,0.7051,3899.5,3899.4,0.13]
[1758842079387,3.26953133,3899.5,3899.4,0.13]
[1758842079756,7.06153133,3899.5,3899.4,0.002]
[1758842080086,7.9956831,3899.5,3899.4,0.002]
[1758842080282,9.48274684,3899.5,3899.4,0.002]
[1758842080652,8.67659507,3899.5,3899.4,0.002]
[1758842081585,9.0925975,3899.5,3899.4,0.002]
[1758842081898,9.48274684,3899.5,3899.4,0.002]
[1758842083491,9.58559747,3899.5,3899.4,0.002]
[1758842085771,10.09586293,3899.5,3899.4,0.002]
[1758842086571,5.56462864,3899.2,3899.1,0.002]
[1758842086783,16.07978457,3899.2,3899.1,0.002]
[1758842086987,16.78388457,3899.2,3899.1,0.002]
[1758842090491,16.91188457,3899.2,3899.1,0.002]
[1758842092035,3.128,3899.2,3899.1,0.002]
[1758842092195,3.128,3899.2,3899.1,0.7127]
[1758842092509,3.128,3899.2,3899.1,0.8407]
[1758842092510,0.128,3899.2,3899.1,0.8407]
[1758842093288,0.128,3899.2,3899.1,0.13]
[1758842093907,0.128,3899.2,3899.1,0.6013]
[1758842096679,0.128,3899.2,3899.1,0.13]
[1758842097105,0.128,3899.2,3899.1,0.6013]
[1758842099419,0.128,3899.2,3899.1,0.13]
[1758842100403,0.128,3899.2,3899.1,0.7127]
[1758842100729,0.001,3899.4,3899.1,0.86634694]
[1758842101016,0.2404,3899.9,3899.2,5.0917]
[1758842101327,0.001,3900.3,3899.5,3.0]
[1758842101477,0.001,3900.3,3899.6,2.5900026]
[1758842101671,0.001,3900.3,3899.6,0.02564365]
[1758842101894,0.001,3900.3,3899.7,0.7107]
[1758842102094,0.001,3900.3,3899.8,0.02564234]
[1758842102300,0.001,3900.3,3899.9,4.381]
[1758842102504,0.001,3900.3,3900.0,0.53737525]
[1758842102699,0.001,3900.3,3900.1,2.137]
[1758842102913,0.001,3900.3,3900.0,2.64873423]
[1758842103121,0.2314,3900.2,3900.0,2.137]
[1758842103312,0.2314,3900.1,3900.0,2.137]
[1758842103629,2.56417876,3899.9,3899.4,4.38]
[1758842103824,6.87483056,3899.9,3899.4,4.38]
[1758842104028,0.2375,3899.8,3899.1,0.4731]
[1758842104199,6.87514029,3899.5,3899.1,0.002]
[1758842104388,2.5645131,3899.4,3899.1,0.002]
[1758842104588,0.2375,3899.4,3899.1,0.002]
[1758842105033,2.56437078,3899.6,3899.1,0.002]
[1758842105891,0.2375,3899.8,3899.1,0.4731]
[1758842106248,2.80173898,3899.8,3899.1,0.4731]
[1758842106538,1.4915,3899.7,3899.1,0.002]
[1758842106826,3.792,3899.5,3899.1,0.002]
[1758842107026,0.792,3899.5,3899.1,0.002]
[1758842107191,0.001,3900.3,3899.2,0.74474628]
[1758842107391,0.001,3900.3,3899.3,5.0991]
[1758842107588,0.001,3900.3,3899.4,3.39185497]
[1758842108020,0.001,3900.3,3899.5,0.7191]
[1758842108326,0.001,3900.3,3899.6,0.02564365]
[1758842108701,0.001,3900.3,3899.6,0.74474365]
[1758842109435,0.001,3900.3,3899.7,0.7191]
[1758842109796,0.001,3900.3,3899.8,0.7191]
[1758842110305,0.2385,3900.3,3899.9,3.394]
[1758842110511,0.2385,3900.3,3899.4,0.4711]
[1758842110512,0.2385,3900.3,3899.7,2.137]
[1758842110830,0.2385,3900.3,3899.4,4.38]
[1758842110831,0.792,3900.1,3899.4,4.38]
[1758842111029,0.793,3900.1,3899.5,0.02564431]
[1758842111232,0.793,3900.1,3899.7,0.128]
[1758842111432,0.793,3900.1,3899.7,0.5991]
[1758842111797,2.56418192,3899.9,3899.7,0.128]
[1758842112000,2.80162239,3900.0,3899.7,0.128]
[1758842112232,2.80172996,3899.9,3899.7,0.128]
[1758842112401,0.2375,3899.8,3899.7,0.128]
[1758842113807,1.00964975,3900.1,3899.7,0.128]
[1758842114008,0.001,3900.1,3899.7,0.8471]
[1758842114227,0.001,3900.1,3900.0,0.128]
[1758842114505,2.56503681,3900.1,3900.0,0.128]
[1758842114709,0.75149924,3900.1,3899.7,0.128]
[1758842114910,0.001,3900.1,3899.5,0.4711]
[1758842115132,0.001,3900.1,3900.0,0.128]
[1758842116013,2.56503681,3900.1,3900.0,0.128]
[1758842117959,0.001,3900.1,3900.0,0.128]
[1758842118328,0.001,3900.1,3900.0,0.5909]
[1758842118530,0.001,3900.1,3900.0,0.8283]
[1758842119934,0.001,3900.1,3900.0,0.7003]
[1758842120142,0.001,3900.1,3900.0,0.8283]
[1758842120440,0.001,3900.1,3900.0,5.2629]
[1758842120829,0.001,3900.1,3900.0,0.128]
[1758842121033,2.80583681,3900.1,3900.0,0.128]
[1758842121446,3.38998125,3900.1,3900.0,0.128]
[1758842121654,2.56432761,3899.7,3899.3,6.516]
[1758842121854,2.56416926,3899.9,3899.3,6.516]
[1758842121855,2.80519445,3899.6,3899.3,6.516]
[1758842122054,2.56439445,3899.6,3899.1,0.002]
[1758842122268,0.2408,3899.9,3899.5,0.128]
[1758842122570,0.2408,3899.8,3899.5,0.128]
[1758842122757,0.2418,3900.1,3899.5,0.128]
[1758842122958,0.001,3900.1,3899.5,0.128]
[1758842123163,0.001,3900.1,3900.0,0.128]
[1758842123939,0.001,3900.1,3900.0,0.5909]
[1758842124340,0.001,3900.1,3900.0,7.3433]
[1758842125584,0.001,3900.1,3900.0,0.8283]
[1758842125879,0.001,3900.1,3900.0,7.3433]
[1758842126079,0.001,3900.1,3900.0,1.56263]
[1758842126267,0.001,3900.1,3900.0,7.3433]
[1758842126469,0.001,3900.1,3900.0,0.8283]
[1758842126657,0.001,3900.1,3900.0,0.128]
[1758842126841,2.80583681,3900.1,3900.0,0.128]
[1758842127244,3.27653681,3900.1,3900.0,0.128]
[1758842127440,0.2418,3900.1,3900.0,0.128]
[1758842127677,0.001,3900.1,3900.0,0.128]
[1758842127973,0.001,3900.1,3900.0,0.8283]
[1758842128673,0.001,3900.1,3900.0,0.5909]
[1758842128881,0.001,3900.1,3900.0,0.8283]
[1758842130068,0.001,3900.1,3900.0,6.642]
[1758842130255,0.001,3900.1,3900.0,7.3423]
[1758842130667,0.001,3900.1,3900.0,7.1049]
[1758842131655,0.001,3900.1,3900.0,0.128]
[1758842131871,0.001,3900.1,3900.0,4.506]
[1758842132787,0.001,3900.1,3900.0,5.1702]
[1758842133001,0.001,3900.1,3900.0,5.8705]
[1758842136377,0.001,3900.1,3900.0,3.6285]
[1758842136575,0.001,3900.1,3900.0,8.0055]
[1758842138215,0.001,3900.1,3900.0,1.4925]
[1758842138394,0.001,3900.1,3900.0,7.3413]
[1758842139121,0.001,3900.1,3900.0,6.641]
[1758842139620,0.001,3900.1,3900.0,0.128]
[1758842139911,0.2418,3900.1,3900.0,4.237]
[1758842140303,0.001,3900.1,3899.1,0.002]
[1758842140479,0.2418,3900.1,3899.2,2.827]
[1758842140679,0.2418,3900.1,3899.3,0.2831]
[1758842140880,2.80589759,3900.1,3899.3,0.2831]
[1758842141113,2.80589759,3900.1,3899.4,2.136]
[1758842141114,2.56417197,3899.9,3899.4,2.136]
[1758842141316,3.27574171,3899.8,3899.5,0.848]
[1758842141621,0.7115,3899.7,3899.5,0.848]
[1758842141834,0.2408,3899.6,3899.1,0.002]
[1758842141987,0.7115,3899.6,3899.2,1.036]
[1758842142314,2.56423276,3899.9,3899.2,1.036]
[1758842142505,3.03573923,3900.1,3899.2,1.036]
[1758842142506,2.80503451,3899.8,3899.2,1.036]
[1758842142689,2.74368755,3899.8,3899.2,1.036]
[1758842142884,0.4707,3899.9,3899.2,1.036]
[1758842143998,0.001,3900.1,3899.3,0.72594562]
[1758842145407,0.001,3900.1,3899.4,0.7003]
[1758842145608,0.001,3900.1,3899.5,0.02564431]
[1758842146103,0.001,3900.1,3899.3,0.002]
[1758842146104,0.001,3900.1,3899.6,0.7003]
[1758842146308,0.001,3900.1,3899.6,0.4629]
[1758842146640,0.2408,3900.0,3899.7,6.512]
[1758842147340,0.2408,3900.0,3899.8,6.512]
[1758842147715,0.001,3900.1,3899.8,6.512]
[1758842148066,0.001,3900.1,3899.9,0.70964168]
[1758842148242,0.001,3900.1,3899.9,0.684]
[1758842148423,0.001,3900.1,3900.0,0.684]
[1758842149747,0.001,3900.1,3900.0,0.70964102]
[1758842149957,0.001,3900.3,3900.2,3.0]
[1758842150137,0.001,3900.5,3900.2,3.78628795]
[1758842150338,0.001,3900.5,3900.4,3.0]
[1758842150511,0.001,3900.5,3900.4,9.805]
[1758842150847,0.001,3900.5,3900.4,10.489]
[1758842151722,0.001,3900.5,3900.4,13.0528396]
[1758842151936,0.001,3900.5,3900.4,13.3704396]
[1758842152629,0.001,3900.5,3900.4,14.1624396]
[1758842153080,0.001,3900.5,3900.4,20.6734396]
[1758842153271,0.001,3900.5,3900.4,1.1296]
[1758842153475,0.001,3900.5,3900.4,19.5638396]
[1758842156554,0.001,3900.5,3900.0,6.676]
[1758842156754,0.001,3900.5,3900.4,2.136]
[1758842158557,0.001,3900.5,3900.4,2.3714]
[1758842158760,0.001,3900.5,3900.4,3.49464]
[1758842158968,0.001,3900.5,3900.4,7.86864]
[1758842159268,0.001,3900.5,3900.4,7.63324]
[1758842160076,0.001,3900.5,3900.4,7.18464]
[1758842160397,0.001,3900.5,3900.4,7.86864]
[1758842161202,0.001,3900.5,3900.4,13.4324796]
[1758842161356,0.001,3900.5,3900.4,10.86864]
[1758842161553,0.001,3900.5,3900.4,17.54364]
[1758842161984,0.001,3900.5,3900.4,20.1074796]
[1758842163184,0.001,3900.5,3900.4,17.54364]
[1758842163491,0.6892,3900.5,3900.4,2.136]
[1758842163695,0.6892,3900.5,3900.4,6.51]
[1758842164960,0.6892,3900.5,3899.3,0.2374]
[1758842165159,0.6892,3900.5,3899.5,3.0]
[1758842165379,0.6892,3900.5,3899.6,0.885]
[1758842165579,0.2417,3900.4,3899.6,0.885]
[1758842166571,0.2417,3900.4,3900.3,0.128]
[1758842166772,0.2417,3900.4,3900.3,6.638]
[1758842166972,0.6993,3900.4,3900.3,4.501]
[1758842167800,0.2417,3900.4,3900.3,4.501]
[1758842168801,0.6993,3900.4,3900.3,4.501]
[1758842169001,0.2417,3900.4,3900.3,4.501]
[1758842169400,0.001,3900.5,3900.3,4.501]
[1758842169603,0.001,3900.5,3900.3,5.16726397]
[1758842169980,0.2417,3900.4,3900.3,0.128]
[1758842170183,2.56395139,3900.3,3899.9,2.136]
[1758842170510,0.6993,3900.2,3900.0,1.269]
[1758842170671,0.001,3900.5,3900.0,1.269]
[1758842170876,0.2417,3900.4,3900.1,0.02564036]
[1758842172074,0.001,3900.5,3900.0,1.269]
[1758842172075,0.2417,3900.3,3900.0,1.269]
[1758842172296,0.001,3900.5,3900.0,1.269]
[1758842172819,0.2417,3900.4,3900.0,1.269]
[1758842172980,0.6993,3900.3,3900.0,1.269]
[1758842173180,0.6993,3900.2,3900.0,1.269]
[1758842173416,0.001,3900.5,3899.3,0.002]
[1758842173417,0.6993,3900.1,3899.3,0.002]
[1758842173703,0.6993,3900.1,3899.6,2.136]
[1758842173910,0.6993,3900.0,3899.6,2.136]
[1758842174095,1.02562288,3900.0,3899.3,0.002]
[1758842174294,2.56428146,3899.8,3899.4,4.373]
[1758842174519,2.56442272,3899.6,3899.3,0.002]
[1758842174718,2.56442272,3899.6,3899.4,4.373]
[1758842174926,0.6993,3899.5,3899.4,4.373]
[1758842176429,0.2417,3899.5,3899.4,4.373]
[1758842176793,0.2417,3900.1,3899.4,4.373]
[1758842176992,3.2417,3900.1,3899.4,4.8107]
[1758842177219,0.2417,3900.1,3899.4,4.8107]
[1758842177428,0.001,3900.5,3899.4,4.8107]
[1758842177728,2.56394688,3900.3,3899.4,4.8107]
[1758842177946,0.4576,3900.4,3899.4,0.4377]
[1758842178119,2.80451714,3900.2,3899.5,6.509]
[1758842178302,0.2405,3900.1,3899.5,6.509]
[1758842178508,0.001,3900.5,3899.6,6.53564365]
[1758842178702,0.001,3900.5,3899.7,0.65356437]
[1758842180034,2.56479569,3900.5,3899.7,0.65356437]
[1758842180234,5.56479569,3900.5,3900.4,0.128]
[1758842180422,6.03069569,3900.5,3900.4,0.128]
[1758842180743,6.27119569,3900.5,3900.4,0.128]
[1758842182225,3.2415,3900.5,3900.4,0.128]
[1758842182427,0.001,3900.5,3900.4,0.5782]
[1758842183927,0.001,3900.5,3900.4,0.128]
[1758842186751,0.001,3900.5,3900.4,4.501]
[1758842188054,0.001,3900.5,3900.4,5.2163]
[1758842188267,0.001,3900.5,3900.4,4.501]
[1758842189976,0.001,3900.5,3900.4,4.99423839]
[1758842190175,0.001,3900.5,3900.4,5.92932384]
[1758842190564,0.001,3900.5,3900.4,5.68162384]
[1758842190775,0.001,3900.5,3900.4,0.84102384]
[1758842190945,0.2415,3900.5,3900.4,4.501]
[1758842191145,0.2415,3900.5,3900.4,0.128]
[1758842191373,0.001,3900.5,3900.4,4.501]
[1758842191677,0.001,3900.5,3900.4,5.1647]
[1758842191877,0.001,3900.5,3900.4,5.88]
[1758842192177,0.001,3900.5,3900.4,5.752]
[1758842193356,0.001,3900.5,3900.4,1.379]
[1758842193564,0.001,3900.5,3900.4,13.9003]
[1758842193878,2.001,3900.5,3900.4,13.9003]
[1758842194847,2.001,3900.5,3900.2,3.0]
[1758842195047,2.001,3900.5,3900.4,2.136]
[1758842195274,2.001,3900.5,3900.4,2.8513]
[1758842197004,2.001,3900.5,3900.4,5.0873]
[1758842197194,2.001,3900.5,3900.4,6.508]
[1758842197574,2.001,3900.5,3900.4,7.2233]
[1758842198101,2.001,3900.5,3900.4,6.508]
[1758842198318,2.001,3900.5,3900.4,6.9756]
[1758842198602,2.001,3900.5,3900.4,8.58846]
[1758842199689,2.001,3900.5,3900.4,1.36516]
[1758842199895,2.001,3900.5,3900.4,4.347]
[1758842202003,2.001,3900.5,3900.4,4.475]
[1758842202665,2.7074,3900.5,3900.4,0.128]
[1758842202870,2.7074,3900.5,3900.4,4.499]
[1758842203524,5.27117387,3900.5,3900.4,0.128]
[1758842203812,6.05475885,3900.5,3900.4,4.499]
[1758842204887,6.05475885,3900.5,3900.4,0.128]
[1758842205091,6.05475885,3900.5,3900.3,0.002]
[1758842205092,5.5638396,3900.4,3900.3,0.002]
[1758842205487,6.2702396,3900.4,3900.3,0.002]
[1758842205769,7.43219292,3900.4,3900.3,0.002]
[1758842207585,4.86835332,3900.4,3900.3,0.002]
[1758842207782,2.001,3900.5,3900.3,0.13]
[1758842208021,2.001,3900.5,3900.4,4.39663839]
[1758842208229,2.001,3900.5,3900.4,5.09653839]
[1758842208524,2.001,3900.5,3900.4,5.0709]
[1758842208878,2.001,3900.5,3900.4,5.80459]
[1758842209275,2.001,3900.5,3900.4,4.371]
[1758842209493,2.001,3900.5,3900.4,6.507]
[1758842210313,2.001,3900.5,3900.4,7.2069]
[1758842211326,2.001,3900.5,3900.4,6.9802]
[1758842211526,2.001,3900.5,3900.4,4.8432]
[1758842211827,2.2496,3900.5,3900.4,4.37]
[1758842212836,2.001,3900.5,3900.4,4.37]
[1758842214197,2.2496,3900.5,3900.4,4.37]
[1758842214602,2.001,3900.5,3900.4,4.37]
[1758842215618,2.001,3900.5,3900.3,0.002]
[1758842215818,2.001,3900.5,3900.4,6.506]
[1758842219242,2.001,3900.5,3900.4,7.8567]
[1758842220532,2.001,3900.5,3900.4,7.9847]
[1758842220904,2.001,3900.5,3900.4,1.4787]
[1758842221110,2.001,3900.5,3900.4,7.2059]
[1758842224439,2.001,3900.5,3900.4,7.0779]
[1758842224618,2.001,3900.5,3900.4,13.894]
[1758842225443,2.001,3900.5,3900.4,16.894]
[1758842225644,2.001,3900.5,3900.4,19.4578396]
[1758842226352,0.87498224,3900.5,3900.4,20.2498396]
[1758842231945,0.87498224,3900.5,3900.4,11.811]
[1758842232145,0.87498224,3900.5,3900.4,3.0]
[1758842232339,0.87498224,3900.5,3900.4,6.82818]
[1758842232751,1.10718224,3900.5,3900.4,6.82818]
[1758842233238,0.87498224,3900.5,3900.4,6.82818]
[1758842233439,0.87498224,3900.5,3900.4,7.50168]
[1758842233854,0.87498224,3900.5,3900.4,7.26188]
[1758842234353,0.87498224,3900.5,3900.4,7.38988]
[1758842234576,0.87498224,3900.5,3900.4,6.95618]
[1758842238149,1.11708224,3900.5,3900.4,0.128]
[1758842238348,1.58368224,3900.5,3900.4,2.481]
[1758842239377,0.87598224,3900.5,3900.4,2.481]
[1758842239678,1.11708224,3900.5,3900.4,2.481]
[1758842243982,1.58368224,3900.5,3900.4,2.481]
[1758842245191,1.58368224,3900.5,3900.4,6.503]
[1758842246589,1.11708224,3900.5,3900.4,6.503]
[1758842247164,1.58368224,3900.5,3900.4,4.366]
[1758842248396,1.58368224,3900.5,3900.4,4.494]
[1758842249661,1.58368224,3900.5,3900.4,0.128]
[1758842249868,1.74215046,3900.5,3900.4,0.128]
[1758842250189,1.58368224,3900.5,3900.4,0.128]
[1758842250790,4.14745611,3900.5,3900.4,0.128]
[1758842250999,1.58368224,3900.5,3900.4,0.128]
[1758842251290,4.14745611,3900.5,3900.4,0.128]
[1758842253767,2.5638396,3900.4,3900.3,4.368]
[1758842253966,3.2350495,3900.4,3900.3,4.368]
[1758842254180,3.9427495,3900.4,3900.3,0.002]
[1758842254783,6.9427495,3900.4,3900.3,0.002]
[1758842256209,3.6712099,3900.4,3900.3,0.002]
[1758842256386,6.2715396,3900.4,3900.3,0.002]
[1758842256980,7.0635396,3900.4,3900.3,0.002]
[1758842257180,7.42869841,3900.4,3900.3,0.002]
[1758842257386,7.1915396,3900.4,3900.3,0.002]
[1758842258114,11.5565396,3900.4,3900.3,0.002]
[1758842258273,13.57366878,3900.4,3900.3,0.002]
[1758842259774,16.64623278,3900.4,3900.3,0.002]
[1758842260104,15.58561878,3900.4,3900.3,0.002]
[1758842262379,16.31366878,3900.4,3900.3,0.002]
[1758842266198,48.98904759,3900.4,3900.3,0.002]
[1758842266402,43.33655059,3900.4,3900.3,0.002]
[1758842267218,41.45235259,3900.4,3900.3,0.002]